lending/lending_fUSD_20250516
["ID","MTS","AMOUNT","RATE_DAILY","PERIOD"]
[361235501,1747383040288,-278633.92434396,0.00013,2]
[361235512,1747383040375,-4509.55218015,0.00013,2]
[361235514,1747383040389,-7928.13875079,0.00013,2]
[361235516,1747383040401,-933.36463944,0.00013,2]
[361235518,1747383040414,-4971.11999996,0.00013,2]
[361235521,1747383040430,-3095.2971693,0.00013,2]
[361235581,1747383043791,-161.61,0.00012264,2]
[361235582,1747383043800,-3033.56813825,0.00013,2]
[361235583,1747383043870,-831.7320161,0.00013,2]
[361235584,1747383043943,-398525.71907932,0.00013,2]
[361235585,1747383043953,-1000.0,0.00013,2]
[361235586,1747383043962,-1000.0,0.00013,2]
[361235587,1747383043972,-1000.0,0.00013,2]
[361235588,1747383043981,-1000.0,0.00013,2]
[361235589,1747383043990,-1000.0,0.00013,2]
[361235590,1747383043999,-1000.0,0.00013,2]
[361235591,1747383044009,-788.22142373,0.00013,2]
[361235592,1747383044018,-504.17,0.00013,2]
[361235593,1747383044027,-400.0,0.00013,2]
[361235594,1747383044036,-500.0,0.00013,2]
[361235595,1747383044045,-700822.92655938,0.00013,2]
[361235600,1747383045439,-400.0,0.00013,2]
[361235601,1747383045498,-2578.20000002,0.00013,2]
[361235602,1747383045678,-20740.0,0.00013,2]
[361235603,1747383045746,-4950.569904,0.00013,2]
[361235604,1747383045757,-539.14825921,0.00013,2]
[361235606,1747383045931,-478.3759044,0.00013,2]
[361235663,1747383090490,150.0,0.00025776,120]
[361235664,1747383157547,87000.0,0.0002,120]
[361235671,1747383199920,508.0,0.0002,120]
[361235709,1747383270474,150.0,0.00025185,120]
[361235711,1747383285210,312.12,0.00021945,30]
[361235714,1747383450700,150.0,0.00025048,120]
[361235716,1747383630484,150.0,0.00027188,120]
[361235734,1747383782386,150.0,0.00011991,7]
[361235737,1747383870716,150.0,0.00025455,120]
[361235738,1747383883285,-1000.0,0.00010289,2]
[361235739,1747383930611,150.0,0.00024862,120]
[361235781,1747384231713,-200.0,0.00010005,2]
[361235783,1747384231722,-157.67,0.00010289,2]
[361235785,1747384231732,-200.0,0.00010803,2]
[361235787,1747384231742,-98.38,0.00010998,2]
[361235789,1747384231754,-201.62,0.00010998,2]
[361235791,1747384231763,-212.74191289,0.00010999,2]
[361235793,1747384231772,-500.0,0.00010999,2]
[361235794,1747384231781,-425.36807999,0.00010999,2]
[361235795,1747384231791,-239.40149444,0.00010999,2]
[361235796,1747384231807,-260.59850556,0.00010999,2]
[361235797,1747384231816,-500.0,0.00010999,2]
[361235798,1747384231825,-500.0,0.00010999,2]
[361235799,1747384231835,-500.0,0.00010999,2]
[361235800,1747384231844,-500.0,0.00010999,2]
[361235801,1747384231853,-500.0,0.00010999,2]
[361235802,1747384231862,-500.0,0.00010999,2]
[361235803,1747384231871,-500.0,0.00010999,2]
[361235804,1747384231882,-500.0,0.00010999,2]
[361235805,1747384231891,-500.0,0.00010999,2]
[361235806,1747384231900,-500.0,0.00010999,2]
[361235807,1747384231910,-500.0,0.00010999,2]
[361235808,1747384231922,-500.0,0.00010999,2]
[361235809,1747384231931,-500.0,0.00010999,2]
[361235810,1747384231940,-500.0,0.00010999,2]
[361235811,1747384231949,-500.0,0.00010999,2]
[361235812,1747384231958,-500.0,0.00010999,2]
[361235813,1747384231967,-546.18281236,0.00010999,2]
[361235814,1747384231975,-500.0,0.00010999,2]
[361235815,1747384231984,-117.2740402,0.00010999,2]
[361235816,1747384232004,-342.26328925,0.00010999,2]
[361235817,1747384232012,-246.73433627,0.00010999,2]
[361235818,1747384232020,-188.13231379,0.00010999,2]
[361235819,1747384232030,-91.86006069,0.00011,2]
[361235820,1747384232043,-450.037073,0.00011,2]
[361235821,1747384232062,-777.5176528,0.00011,2]
[361235822,1747384232073,-12291.023392,0.00011,2]
[361235825,1747384232109,-320725.38399659,0.00011,2]
[361235830,1747384232128,-14579.30754094,0.00011,2]
[361235832,1747384232138,-1023.17524349,0.00011218,2]
[361235834,1747384232148,-200.0,0.00011317,2]
[361235836,1747384232157,-200.0,0.00011317,2]
[361235838,1747384232166,-1023.17524344,0.00011405,2]
[361235840,1747384232175,-1023.17524344,0.00011592,2]
[361235842,1747384232185,-234.63,0.00011674,2]
[361235844,1747384232194,-1023.17524344,0.00011779,2]
[361235846,1747384232203,-768.14498488,0.000119,2]
[361235848,1747384232212,-500.0,0.00011939,2]
[361235850,1747384232221,-3839.69,0.00012,2]
[361235852,1747384232230,-3839.69,0.00012,2]
[361235854,1747384232239,-3839.69,0.00012,2]
[361235856,1747384232249,-3839.69,0.00012,2]
[361235858,1747384232258,-3839.69,0.00012,2]
[361235860,1747384232267,-3322.71501814,0.00012,2]
[361235862,1747384232279,-1677.28498186,0.00012,2]
[361235864,1747384232288,-6095.97,0.00012055,2]
[361235866,1747384232298,-420.0,0.00012086,2]
[361235868,1747384232307,-937.95272814,0.00012144,2]
[361235870,1747384232319,-62.04727186,0.00012144,2]
[361235872,1747384232328,-768.1449847,0.0001221,2]
[361235874,1747384232337,-250.0,0.0001225,2]
[361235877,1747384232348,-166.58,0.00012333,2]
[361235878,1747384232357,-315.73,0.00012334,2]
[361235880,1747384232366,-1000.0,0.00012349,2]
[361235883,1747384232375,-207.4,0.00012349,2]
[361235885,1747384232384,-200.0,0.000125,4]
[361235887,1747384232394,-768.1449847,0.00012521,2]
[361235889,1747384232403,-1157.67,0.00012553,2]
[361235891,1747384232412,-150.24,0.00012582,2]
[361235893,1747384232421,-500.0,0.000126,4]
[361235895,1747384232430,-800.0,0.000127,4]
[361235897,1747384232438,-1000.0,0.000128,4]
[361235899,1747384232446,-36.41948374,0.00012831,2]
[361235901,1747384232462,-731.72550096,0.00012831,2]
[361235903,1747384232471,-1000.0,0.00012876,2]
[361235905,1747384232480,-500.0,0.00012877,2]
[361235908,1747384232489,-500.0,0.00012877,2]
[361235909,1747384232498,-303.30942467,0.00012877,2]
[361235911,1747384232507,-151.0,0.00012892,2]
[361235913,1747384232517,-668.65185757,0.00012892,2]
[361235915,1747384232526,-1599.83726786,0.00012894,2]
[361235917,1747384232536,-672.70394894,0.00012897,2]
[361235920,1747384232547,-364.29605106,0.00012897,2]
[361235922,1747384232556,-1058.9641,0.000129,2]
[361235924,1747384232566,-1599.83726786,0.000129,2]
[361235925,1747384232574,-2340.14162831,0.000129,2]
[361236437,1747384237826,-1023.17524344,0.00011966,2]
[361236439,1747384237836,-889.72475656,0.000129,2]
[361236443,1747384237862,-1610.27524344,0.000129,2]
[361236445,1747384237871,-9813.81747169,0.000129,2]
[361236447,1747384237882,-11738.3469,0.000129,2]
[361236449,1747384237892,-154.00185799,0.000129,2]
[361236451,1747384237901,-187.27384115,0.000129,2]
[361236453,1747384237911,-861.607,0.000129,2]
[361236455,1747384237920,-172.85706745,0.000129,2]
[361236457,1747384237929,-220.13897088,0.000129,2]
[361236459,1747384237939,-553.81043879,0.000129,2]
[361236461,1747384237948,-1300.0,0.000129,4]
[361236463,1747384237957,-410.38212168,0.000129,2]
[361236465,1747384237967,-566.92917316,0.000129,2]
[361236467,1747384237976,-938.3122472,0.00012934,2]
[361236469,1747384237985,-302.35007709,0.00012973,2]
[361236471,1747384237994,-500.0,0.00012973,2]
[361236473,1747384238003,-500.0,0.00012973,2]
[361236475,1747384238011,-500.0,0.00012973,2]
[361236477,1747384238020,-500.0,0.00012973,2]
[361236479,1747384238029,-500.0,0.00012973,2]
[361236481,1747384238043,-500.0,0.00012973,2]
[361236483,1747384238051,-500.0,0.00012973,2]
[361236485,1747384238060,-500.0,0.00012973,2]
[361236487,1747384238069,-500.0,0.00012973,2]
[361236489,1747384238078,-156.47663936,0.0001299,2]
[361236491,1747384238087,-2281.29467812,0.00012994,2]
[361236493,1747384238098,-459.13262453,0.00012994,2]
[361236495,1747384238111,-23928.67309876,0.00012994,2]
[361236499,1747384238135,-17692.29742004,0.00012994,2]
[361236501,1747384238147,-518.3,0.00012994,2]
[361236503,1747384238158,-6080.3652768,0.00012994,2]
[361236507,1747384238178,-980.96425605,0.00012994,2]
[361236509,1747384238187,-14807.92766518,0.00012998,2]
[361236511,1747384238202,-1153.86737547,0.00012998,2]
[361236727,1747384240015,-427714.50030225,0.00012998,2]
[361236744,1747384240177,-2079.9516,0.00012998,2]
[361236749,1747384240212,-42723.53358752,0.00012998,2]
[361236752,1747384240231,-101426.06100764,0.00012998,2]
[361236755,1747384240249,-161849.06721438,0.00012998,2]
[361236756,1747384240267,-2680.60610662,0.00012998,2]
[361236805,1747384242832,-1023.17524344,0.00012152,2]
[361236806,1747384242841,-1237.59058928,0.00012998,2]
[361236807,1747384242852,-396.359999,0.00012998,2]
[361236808,1747384242864,-7372.92614898,0.00012998,2]
[361236809,1747384242943,-776.9853678,0.00012998,2]
[361236810,1747384242954,-811.9000005,0.00012998,2]
[361236811,1747384243056,-13778.95009656,0.00012998,2]
[361236833,1747384245653,-1023.17524344,0.00012339,2]
[361236835,1747384245663,-464.97475656,0.00012998,2]
[361236838,1747384245675,-2722.85,0.00012998,2]
[361236841,1747384245700,-4097.41689226,0.00012998,2]
[361236843,1747384245709,-6232.58310773,0.00012999,2]
[361236854,1747384245818,-3014.8849959,0.00012999,2]
[361236855,1747384245841,-2024.65481865,0.00012999,2]
[361236856,1747384245850,-173.4704964,0.00012999,7]
[361236857,1747384245860,-527.0,0.00013,2]
[361236858,1747384245869,-2493.00368495,0.00013,2]
[361236869,1747384246167,-494.9407751,0.00013,2]
[361236871,1747384246178,-419.95549135,0.00013,2]
[361236874,1747384246190,-596.92499416,0.00013,2]
[361236876,1747384246201,-4317.1,0.00013,2]
[361236893,1747384419559,-240.30515016,0.0001,2]
[361236894,1747384422661,-209.69484984,0.0001,2]
[361236896,1747384509879,273.1,0.00021945,30]
[361236897,1747384679068,156.92,0.00027397,120]
[361236898,1747384787602,594.67618406,0.00027397,120]
[361236902,1747384857789,203.63,9.907e-05,2]
[361236905,1747385078970,150.0,0.000125,5]
[361236906,1747385101702,1671.48439,0.00027397,120]
[361236907,1747385123913,150.0,0.00011547,7]
[361236908,1747385175052,256.01366559,0.000125,5]
[361236954,1747385432140,-1064.52,0.00010008,2]
[361236955,1747385432150,-165.85145169,0.00011348,2]
[361236956,1747385432192,-275.65034164,0.00011348,2]
[361236957,1747385436345,-533.95598279,0.00011348,2]
[361236958,1747385436397,-921.348,0.00011348,2]
[361237045,1747385437711,-7272.95890268,0.00011348,2]
[361237047,1747385437723,-3252.2353212,0.00011348,2]
[361237049,1747385437731,-234.63,0.00011487,2]
[361237051,1747385437741,-250.0,0.00011488,2]
[361237053,1747385437751,-250.37577612,0.00011492,2]
[361237058,1747385437787,-2.20422388,0.00011492,2]
[361237060,1747385437797,-168.88,0.00011554,2]
[361237062,1747385437807,-389.93793726,0.000116,2]
[361237064,1747385437816,-294.42,0.00011805,2]
[361237066,1747385437825,-1000.0,0.00011848,2]
[361237068,1747385437836,-238.35219143,0.00011942,2]
[361237073,1747385437882,-961.64780857,0.00011942,2]
[361237075,1747385437891,-500.0,0.00012,2]
[361237077,1747385437901,-164.15,0.00012038,2]
[361237079,1747385437911,-164.15,0.00012047,2]
[361237081,1747385437920,-164.15,0.00012056,2]
[361237083,1747385437930,-164.15,0.00012064,2]
[361237085,1747385437940,-164.15,0.00012073,2]
[361237087,1747385437949,-164.15,0.00012082,2]
[361237089,1747385437958,-200.0,0.00012085,2]
[361237091,1747385437968,-164.15,0.0001209,2]
[361237093,1747385437978,-164.15,0.00012099,2]
[361237095,1747385437987,-200.0,0.000121,2]
[361237097,1747385437997,-231.56,0.000122,2]
[361237099,1747385438006,-804.53,0.000122,2]
[361237101,1747385438016,-804.53,0.000122,2]
[361237103,1747385438025,-804.53,0.000122,2]
[361237105,1747385438035,-1064.52,0.00012272,2]
[361237107,1747385438044,-804.53,0.00012301,2]
[361237109,1747385438053,-457.73,0.00012301,2]
[361237111,1747385438063,-804.53,0.00012301,2]
[361237113,1747385438073,-457.73,0.00012301,2]
[361237115,1747385438083,-804.53,0.00012301,2]
[361237117,1747385438092,-457.73,0.00012301,2]
[361237119,1747385438102,-457.73,0.00012301,2]
[361237121,1747385438111,-804.53,0.00012301,2]
[361237123,1747385438120,-804.53,0.00012301,2]
[361237125,1747385438130,-356.91219143,0.00012301,2]
[361237127,1747385438142,-100.81780857,0.00012301,2]
[361237129,1747385438151,-498.9188328,0.00012301,2]
[361237131,1747385438162,-293.85500773,0.00012301,2]
[361237140,1747385438244,-11.75615947,0.00012301,2]
[361237142,1747385438254,-464.53,0.00012301,2]
[361237144,1747385438264,-804.53,0.00012301,2]
[361237146,1747385438274,-439.51074177,0.00012301,2]
[361237149,1747385438286,-365.01925823,0.00012301,2]
[361237151,1747385438295,-435.12699457,0.00012349,2]
[361237305,1747385439970,-564.87300543,0.00012349,2]
[361237307,1747385439980,-207.4,0.00012349,2]
[361237309,1747385439990,-346.48,0.0001245,2]
[361237311,1747385439999,-200.0,0.00012488,2]
[361237314,1747385440009,-151.0,0.00012638,2]
[361237316,1747385440019,-668.65185757,0.00012638,2]
[361237317,1747385440029,-1000.0,0.00012876,2]
[361237319,1747385440038,-1157.11,0.00012877,2]
[361237321,1747385440047,-1037.0,0.00012897,2]
[361237323,1747385440059,-467.5167,0.000129,2]
[361237325,1747385440069,-500.0,0.000129,2]
[361237327,1747385440080,-3800.96749906,0.000129,2]
[361237330,1747385440091,-12042.82540094,0.000129,2]
[361237332,1747385440100,-558.50315413,0.000129,2]
[361237334,1747385440110,-3069.52573032,0.000129,2]
[361237336,1747385440120,-188.69054646,0.000129,2]
[361237338,1747385440129,-174.29073933,0.000129,2]
[361237339,1747385440139,-665.7256536,0.000129,2]
[361237341,1747385440148,-164.34264902,0.000129,2]
[361237343,1747385440157,-494.48638793,0.000129,2]
[361237345,1747385440167,-252.58,0.00012928,2]
[361237347,1747385440177,-750.6497978,0.00012934,2]
[361237349,1747385440186,-689.286,0.00012934,2]
[361237351,1747385440195,-500.0,0.00012973,2]
[361237353,1747385440205,-500.0,0.00012973,2]
[361237355,1747385440214,-500.0,0.00012973,2]
[361237357,1747385440224,-500.0,0.00012973,2]
[361237359,1747385440233,-500.0,0.00012973,2]
[361237361,1747385440242,-267.37477981,0.00012973,2]
[361237363,1747385440252,-156.47663938,0.0001299,2]
[361237365,1747385440261,-616.24253471,0.00012993,2]
[361237367,1747385440270,-500.0,0.00012993,2]
[361237369,1747385440280,-256.02176538,0.00012993,2]
[361237371,1747385440289,-4081.4735216,0.00012994,2]
[361237373,1747385440298,-1383.0189193,0.00012994,2]
[361237386,1747385440416,-279.87619252,0.00012994,2]
[361237388,1747385440428,-624.24769285,0.00012994,2]
[361237396,1747385440501,-2089.4,0.00012994,2]
[361237518,1747385443162,-1645.97775978,0.00012994,2]
[361237519,1747385443178,-4300.83041726,0.00012994,2]
[361237520,1747385443190,-3797.68104727,0.00012994,2]
[361237521,1747385443233,-537.88414791,0.00012994,2]
[361237522,1747385443245,-3822.52695706,0.00012994,2]
[361237523,1747385443271,-446.310827,0.00012994,2]
[361237525,1747385443341,-2039.30178093,0.00012994,2]
[361237527,1747385443361,-2212.39711555,0.00012994,2]
[361237528,1747385443373,-720.0899999,0.00012994,2]
[361237530,1747385443385,-635.716992,0.00012994,2]
[361237532,1747385443396,-655.65,0.00012994,2]
[361237534,1747385443407,-857.8,0.00012994,2]
[361237538,1747385445911,-1984.78,0.00012994,2]
[361237539,1747385445924,-36172.79507047,0.00012994,2]
[361237540,1747385445933,-2053.74887251,0.00012994,2]
[361237541,1747385446073,-2647.73328687,0.00012994,2]
[361237542,1747385446085,-712.682,0.00012994,2]
[361237543,1747385446101,-863.30318789,0.00012994,2]
[361237544,1747385446114,-924.87105184,0.00012994,2]
[361237545,1747385446128,-787.28801539,0.00012994,2]
[361237546,1747385446138,-1097.33479407,0.00012994,2]
[361237547,1747385446186,-17333.00231408,0.00012994,2]
[361237548,1747385446228,-7805.15052725,0.00012994,2]
[361237549,1747385446240,-710.81898075,0.00012994,2]
[361237550,1747385446251,-302.0,0.00012994,2]
[361237551,1747385446285,-1729.24609705,0.00012994,2]
[361237552,1747385446297,-300.9518,0.00012994,2]
[361237553,1747385446308,-3368.03099176,0.00012994,2]
[361237556,1747385583842,10000.0,0.00025,30]
[361237557,1747385595125,10000.0,0.00025,60]
[361237558,1747385606231,10000.0,0.00025,90]
[361237559,1747385615470,10000.0,0.00027397,120]
[361237560,1747385641407,10000.0,0.00025,30]
[361237561,1747385653082,10000.0,0.00025,30]
[361237562,1747385662105,5000.0,0.00027397,120]
[361237563,1747385669704,5000.0,0.00025,90]
[361237564,1747385680116,970.5,9.74e-05,2]
[361237566,1747385688009,174.33,0.00025,60]
[361237569,1747385704768,238.96,0.00021945,30]
[361237574,1747386130427,150.0,0.00011903,7]
[361237586,1747386518140,430.79,9e-05,2]
[361237620,1747386632694,-286.48093761,0.0001,2]
[361237635,1747386633088,-163.51906239,0.0001,2]
[361237637,1747386633097,-500.0,0.00010995,2]
[361237639,1747386633107,-49.28276482,0.00010995,2]
[361237645,1747386633157,-1150.71723518,0.00010995,2]
[361237647,1747386633167,-300.0,0.00010995,2]
[361237649,1747386633176,-152.99932,0.00010996,2]
[361237651,1747386633186,-989.009741,0.00010996,2]
[361237653,1747386633197,-5951.618957,0.00010996,2]
[361237655,1747386633206,-1642.33144,0.00010996,2]
[361237657,1747386633216,-161.13144,0.00010996,2]
[361237659,1747386633226,-989.009741,0.00010998,2]
[361237661,1747386633235,-5951.618957,0.00010998,2]
[361237663,1747386633245,-989.009741,0.00010998,2]
[361237665,1747386633254,-5951.618957,0.00010998,2]
[361237667,1747386633264,-989.009741,0.00010998,2]
[361237669,1747386633274,-5951.618957,0.00010998,2]
[361237671,1747386633284,-1642.33144,0.00010998,2]
[361237673,1747386633294,-1642.33144,0.00010998,2]
[361237675,1747386633304,-1642.33144,0.00010998,2]
[361237677,1747386633313,-250.0,0.00011,2]
[361237679,1747386633323,-200.0,0.00011248,2]
[361237681,1747386633332,-989.009741,0.00011272,2]
[361237683,1747386633341,-5951.618957,0.00011272,2]
[361237685,1747386633351,-1642.33144,0.00011272,2]
[361237687,1747386633360,-14106.59,0.00011493,2]
[361237689,1747386633372,-230.31,0.00011502,2]
[361237691,1747386633381,-2751.0,0.00011507,2]
[361237693,1747386633391,-500.0,0.00011543,2]
[361237695,1747386633401,-500.0,0.00011543,2]
[361237697,1747386633410,-500.0,0.00011543,2]
[361237699,1747386633419,-500.0,0.00011543,2]
[361237701,1747386633431,-500.0,0.00011543,2]
[361237703,1747386633441,-500.0,0.00011543,2]
[361237705,1747386633451,-500.0,0.00011543,2]
[361237707,1747386633461,-397.38064337,0.00011543,2]
[361237709,1747386633471,-500.0,0.00011543,2]
[361237712,1747386633481,-500.0,0.00011543,2]
[361237714,1747386633492,-500.0,0.00011543,2]
[361237716,1747386633501,-500.0,0.00011543,2]
[361237718,1747386633513,-500.0,0.00011543,2]
[361237720,1747386633523,-500.0,0.00011543,2]
[361237722,1747386633532,-500.0,0.00011543,2]
[361237723,1747386633543,-500.0,0.00011543,2]
[361237725,1747386633553,-989.009741,0.00011544,2]
[361237728,1747386633565,-2701.13190468,0.00011544,2]
[361237734,1747386633614,-500.0,0.00011543,2]
[361237736,1747386633624,-500.0,0.00011543,2]
[361237738,1747386633634,-3250.48705232,0.00011544,2]
[361237740,1747386633643,-1642.33144,0.00011544,2]
[361237742,1747386633653,-989.009741,0.00011546,2]
[361237744,1747386633662,-439.33133037,0.00011546,2]
[361237746,1747386633675,-706.91205374,0.00011546,2]
[361237750,1747386633706,-500.0,0.00011543,2]
[361237752,1747386633716,-879.46091107,0.00011546,2]
[361237754,1747386633730,-2074.2438,0.00011546,2]
[361237757,1747386633742,-1851.67086182,0.00011546,2]
[361237759,1747386633752,-1417.21396973,0.00011546,2]
[361237764,1747386633796,-500.0,0.00011543,2]
[361237767,1747386633807,-225.11747027,0.00011546,2]
[361237769,1747386633816,-231.71,0.00011768,2]
[361237771,1747386633826,-4000.0,0.00011812,2]
[361237773,1747386633836,-152.99932,0.00011818,2]
[361237775,1747386633845,-989.009741,0.00011818,2]
[361237776,1747386633855,-5951.618957,0.00011818,2]
[361237779,1747386633865,-1642.33144,0.00011818,2]
[361237781,1747386633875,-989.009741,0.0001182,2]
[361237783,1747386633884,-5951.618957,0.0001182,2]
[361237784,1747386633894,-1642.33144,0.0001182,2]
[361237786,1747386633903,-250.0,0.00011903,2]
[361237788,1747386633913,-540.08537385,0.00011922,2]
[361237791,1747386633925,-459.91462615,0.00011922,2]
[361237793,1747386633934,-1262.88537385,0.00011994,2]
[361237872,1747386634952,-185.11462615,0.00011994,2]
[361237874,1747386634962,-500.0,0.00012,2]
[361237876,1747386634971,-970.5,0.00012004,2]
[361237878,1747386634981,-420.0,0.00012082,2]
[361237880,1747386634990,-989.009741,0.00012094,2]
[361237882,1747386634999,-5951.618957,0.00012094,2]
[361237884,1747386635008,-919.07508542,0.00012094,2]
[361237886,1747386635019,-723.25635458,0.00012094,2]
[361237888,1747386635029,-161.13144,0.00012094,2]
[361237890,1747386635038,-200.0,0.00012095,2]
[361237893,1747386635048,-117.07111794,0.00012095,2]
[361237895,1747386635060,-1083.133,0.00012095,2]
[361237900,1747386635097,-214.79588206,0.00012095,2]
[361237902,1747386635107,-167.11,0.0001226,2]
[361237904,1747386635119,-281.96406291,0.00012341,2]
[361238219,1747386638103,-1071.05593709,0.00012341,2]
[361238221,1747386638114,-1000.0,0.00012348,2]
[361238223,1747386638127,-151.0,0.00012348,2]
[361238224,1747386638137,-278.68456291,0.00012348,2]
[361238228,1747386638163,-389.96729466,0.00012348,2]
[361238230,1747386638176,-26.44623203,0.00012348,2]
[361238239,1747386638250,-180.95376797,0.00012348,2]
[361238241,1747386638260,-989.009741,0.00012368,2]
[361238243,1747386638270,-2934.75712507,0.00012368,2]
[361238245,1747386638282,-1955.9999971,0.00012368,2]
[361238247,1747386638293,-1060.86183483,0.00012368,2]
[361238249,1747386638302,-1642.33144,0.00012368,2]
[361238250,1747386638312,-25.14896824,0.000126,2]
[361238251,1747386638323,-128.85103176,0.000126,2]
[361238252,1747386638332,-880.0,0.000126,2]
[361238253,1747386638341,-5196.09441534,0.000126,2]
[361238363,1747386640404,-744.90558466,0.000126,2]
[361238365,1747386640414,-989.009741,0.00012642,2]
[361238367,1747386640423,-5951.618957,0.00012642,2]
[361238369,1747386640434,-1642.33144,0.00012642,2]
[361238371,1747386640444,-200.0,0.00012652,2]
[361238373,1747386640453,-427.06,0.000127,2]
[361238375,1747386640463,-450.33,0.000127,2]
[361238377,1747386640472,-1000.0,0.000128,2]
[361238378,1747386640482,-357.02,0.000128,2]
[361238380,1747386640491,-353.05,0.000128,2]
[361238382,1747386640501,-150.22,0.000128,2]
[361238384,1747386640511,-150.22,0.000128,2]
[361238386,1747386640520,-452.87,0.000128,2]
[361238387,1747386640530,-353.05,0.000128,2]
[361238389,1747386640539,-452.87,0.000128,2]
[361238391,1747386640548,-150.01,0.000128,2]
[361238393,1747386640557,-353.05,0.000128,2]
[361238395,1747386640567,-452.87,0.000128,2]
[361238397,1747386640576,-452.87,0.000128,2]
[361238399,1747386640585,-2870.24333678,0.000128,2]
[361238400,1747386640594,-2870.24333675,0.00012811,2]
[361238402,1747386640604,-559.28493788,0.00012816,2]
[361238404,1747386640613,-2870.24333675,0.00012822,2]
[361238406,1747386640624,-2870.24333675,0.00012833,2]
[361238408,1747386640634,-2870.24333675,0.00012844,2]
[361238410,1747386640643,-2870.24333675,0.00012856,2]
[361238412,1747386640653,-2870.24333675,0.00012867,2]
[361238414,1747386640662,-1000.0,0.00012876,2]
[361238415,1747386640671,-2870.24333675,0.00012878,2]
[361238417,1747386640681,-2870.24333675,0.00012889,2]
[361238419,1747386640690,-164.34264901,0.00012893,2]
[361238421,1747386640700,-432.31772397,0.00012893,2]
[361238423,1747386640710,-282.7789479,0.00012893,2]
[361238425,1747386640719,-1037.0,0.00012896,2]
[361238426,1747386640728,-693.3919763,0.00012896,2]
[361238428,1747386640738,-450.2883,0.000129,2]
[361238430,1747386640747,-6204.9454,0.000129,2]
[361238432,1747386640756,-167.38850893,0.000129,2]
[361238434,1747386640766,-161.32375439,0.000129,2]
[361238436,1747386640775,-643.53479848,0.000129,2]
[361238437,1747386640785,-452.87,0.000129,2]
[361238439,1747386640794,-2870.24333675,0.000129,2]
[361238441,1747386640804,-185.67036522,0.000129,2]
[361238443,1747386640813,-407.34666252,0.000129,2]
[361238446,1747386640824,-300.65973278,0.00012911,2]
[361238448,1747386640833,-989.009741,0.00012916,2]
[361238450,1747386640843,-5951.618957,0.00012916,2]
[361238452,1747386640853,-1642.33144,0.00012916,2]
[361238454,1747386640862,-600.5198382,0.00012934,2]
[361238456,1747386640872,-1225.5,0.00012934,2]
[361238457,1747386640882,-500.0,0.00012973,2]
[361238459,1747386640892,-500.0,0.00012973,2]
[361238461,1747386640901,-500.0,0.00012973,2]
[361238463,1747386640910,-500.0,0.00012973,2]
[361238465,1747386640921,-500.0,0.00012973,2]
[361238467,1747386640931,-350.0,0.00012981,2]
[361238468,1747386640941,-339.47927693,0.00012993,2]
[361238470,1747386640950,-1216.68392049,0.00012993,3]
[361238472,1747386640960,-412.31659727,0.00012993,2]
[361238474,1747386640969,-500.0,0.00012993,2]
[361238476,1747386640978,-172.71403539,0.00012993,2]
[361238478,1747386640987,-321.67613062,0.00012993,2]
[361238479,1747386640997,-355909.97851778,0.00012994,2]
[361238488,1747386641162,-215933.27391272,0.00012994,2]
[361238489,1747386641173,-6126.1895188,0.00012994,2]
[361238490,1747386641183,-43740.8869135,0.00012994,2]
[361238491,1747386641192,-25482.4022954,0.00012994,2]
[361238492,1747386641201,-8613.9265129,0.00012994,2]
[361238493,1747386641211,-87189.7633927,0.00012994,2]
[361238494,1747386641220,-989.009741,0.00012997,2]